[Event "Turkish Super League 2019"]
[Site "Konya"]
[Date "2019.07.19"]
[Round "3"]
[White "Eren, Ataberk"]
[Black "Kamer, Kayra"]
[Result "0-1"]
[ECO "B43"]
[WhiteElo "2295"]
[BlackElo "2340"]
[Annotator "NA"]
[PlyCount "66"]
[EventDate "2019.07.17"]
[EventType "team-tourn"]
[EventCountry "TUR"]
[SourceTitle "playchess.com"]
[Source "ChessBase"]
[SourceQuality "1"]
[TimeControl "40/5400+30:1800+30"]

1. e4 {[%emt 0:36:30]} c5 {[%emt 0:11:30]} 2. Nf3 {[%emt 0:00:30]} e6 {[%emt 0:00:30]} 3. d4 {[%emt 0:00:30]} cxd4 {[%emt 0:00:30]} 4. Nxd4 {[%emt 0:00:30]} a6 {[%emt 0:00:30]} 5. Nc3 {[%emt 0:00:30]} b5 {[%emt 0:00:30]} 6. g3 {[%emt 0:00:30]} Bb7 {[%emt 0:00:30]} 7. Bg2 {[%emt 0:00:30]} Nf6 {[%emt 0:00:30]} 8. O-O {[%emt 0:00:30]} b4 {[%emt 0:00:30]} 9. Na4 {[%emt 0:00:30]} Bxe4 {[%emt 0:00:30]} 10. Bxe4 {[%emt 0:00:30]} Nxe4 {[%emt 0:00:30]} 11. Re1 {[%emt 0:00:30]} Nc5 {[%emt 0:00:30]} 12. Qf3 {[%emt 0:00:30]} Ra7 {[%emt 0:01:30]} 13. Nxc5 {[%emt 0:00:30]} Bxc5 {[%emt 0:00:30]} 14. Be3 {[%emt 0:00:30]} Qb6 {[%emt 0:01:30]} 15. Nf5 {[%emt 0:13:30]} O-O {[%emt 0:00:30]} 16. Nxg7 {[%emt 0:17:30]} Bxe3 {[%emt 0:00:30]} 17. Nh5 {[%emt 0:11:06]} Bxf2+ {[%emt 0:05:30]} 18. Kg2 {[%emt 0:01:11]} f5 {[%emt 0:00:30]} 19. Qf4 {[%emt 0:00:15]} Bd4 {[%emt 0:02:30]} 20. Rad1 {[%emt 0:01:36]} Qc6+ {[%emt 0:03:30]} 21. Kh3 {[%emt 0:00:10]} e5 {[%emt 0:00:30]} 22. Qh4 {[%emt 0:00:36]} Qg6 {[%emt 0:01:30]} 23. Kg2 {[%emt 0:00:49]} d6 {[%emt 0:01:30]} 24. c3 {[%emt 0:01:10]} bxc3 {[%emt 0:00:30]} 25. bxc3 {[%emt 0:00:00]} Bxc3 {[%emt 0:01:30]} 26. Qc4+ {[%emt 0:00:00]} Raf7 {[%emt 0:00:30]} 27. Qxc3 {[%emt 0:00:14]} Qxh5 {[%emt 0:00:30]} 28. Rxd6 {[%emt 0:00:00]} f4 {[%emt 0:00:30]} 29. h4 {[%emt 0:02:39]} fxg3 {[%emt 0:00:30]} 30. Rxe5 {[%emt 0:00:54]} Rf2+ {[%emt 0:00:30]} 31. Kg1 {[%emt 0:00:06]} Rf1+ {[%emt 0:00:30]} 32. Kg2 {[%emt 0:00:31]} R8f2+ {[%emt 0:00:00]} 33. Kh3 {[%emt 0:00:00]} Rh2+ {[%emt 0:00:00]} 0-1

[Event "Turkish Super League 2019"]
[Site "Konya"]
[Date "2019.07.19"]
[Round "3"]
[White "Yildiz Kadioglu, Betul Cemre"]
[Black "Buksa, Nataliya"]
[Result "1/2-1/2"]
[ECO "D35"]
[WhiteElo "2290"]
[BlackElo "2379"]
[Annotator "NA"]
[PlyCount "100"]
[EventDate "2019.07.17"]
[EventType "team-tourn"]
[EventCountry "TUR"]
[SourceTitle "playchess.com"]
[Source "ChessBase"]
[SourceQuality "1"]
[TimeControl "40/5400+30:1800+30"]

1. d4 Nf6 2. c4 e6 3. Nc3 d5 4. cxd5 exd5 5. Bg5 c6 6. e3 Nbd7 7. Bd3 Be7 8. Nge2 Nf8 9. O-O Ne6 10. Bh4 O-O 11. Qb1 g6 12. b4 a6 13. a4 Nh5 14. Bxe7 Qxe7 15. b5 axb5 16. axb5 Rxa1 17. Qxa1 f5 18. bxc6 bxc6 19. Qa4 Bd7 20. g3 Ng5 21. Rb1 f4 22. exf4 Nh3+ 23. Kf1 N3xf4 24. gxf4 Bh3+ 25. Ke1 Nxf4 26. Ba6 Qf6 27. Nxf4 Qxf4 28. Ne2 Qxf2+ 29. Kd2 Qf6 30. Bd3 Bg4 31. Re1 Qg5+ 32. Kc2 Qh4 33. Qb4 Qxh2 34. Qe7 Rf2 35. Kc3 Rf7 36. Qg5 Qc7 37. Ra1 Bxe2 38. Bxe2 c5 39. Qxd5 cxd4+ 40. Kxd4 Kg7 41. Bb5 Qh2 42. Ra2 Qg3 {[%emt 2:12:11]} 43. Bd3 {[%emt 2:05:21]} Re7 {[%emt 0:00:57]} 44. Re2 {[%emt 0:05:01]} Qg1+ {[%emt 0:05:52]} 45. Kc3 {[%emt 0:02:46]} Qc1+ {[%emt 0:00:04]} 46. Kb4 {[%emt 0:05:20]} Rxe2 {[%emt 0:03:21]} 47. Qd4+ {[%emt 0:01:20]} Kh6 {[%emt 0:00:02]} 48. Qh4+ {[%emt 0:00:00]} Kg7 {[%emt 0:00:04]} 49. Qd4+ {[%emt 0:00:00]} Kh6 {[%emt 0:01:34]} 50. Qh4+ {[%emt 0:00:25]} Kg7 {[%emt 0:00:00]} 1/2-1/2

[Event "Turkish Super League 2019"]
[Site "Konya"]
[Date "2019.07.19"]
[Round "3"]
[White "Kilic, Efe Mert"]
[Black "Aydin, Hakan Arda"]
[Result "0-1"]
[ECO "C47"]
[WhiteElo "2275"]
[BlackElo "1956"]
[Annotator "NA"]
[PlyCount "114"]
[EventDate "2019.07.17"]
[EventType "team-tourn"]
[EventCountry "TUR"]
[SourceTitle "playchess.com"]
[Source "ChessBase"]
[SourceQuality "1"]
[TimeControl "40/5400+30:1800+30"]

1. e4 e5 2. Nc3 Nf6 3. g3 d5 4. exd5 Nxd5 5. Bg2 Be6 6. Nf3 Nc6 7. O-O Bd6 8. d3 O-O 9. Ng5 Nxc3 10. bxc3 Bf5 11. Rb1 Rb8 12. Be3 Be7 13. Ne4 b6 14. Nd2 Qd7 15. Re1 f6 16. Qf3 Nd8 17. Qd5+ Qxd5 18. Bxd5+ Be6 19. Bg2 a5 20. c4 Bb4 21. Re2 Nf7 22. Ne4 Nd6 23. Nxd6 Bxd6 24. Bc6 Rfd8 25. Kg2 Kf7 26. h3 Bc5 27. Bxc5 bxc5 28. Ree1 Rxb1 29. Rxb1 Rd6 30. Be4 Rb6 31. Rb3 Bd7 32. Bd5+ Ke7 33. g4 Kd6 34. Be4 h6 35. Kg3 g5 36. Kf3 Rb4 37. a3 Rb6 38. Bd5 Ba4 39. Rxb6+ cxb6 40. c3 b5 41. Ke3 b4 42. Kd2 {[%emt 1:57:00]} bxa3 {[%emt 2:18:38]} 43. Kc1 {[%emt 0:00:30]} a2 {[%emt 0:00:30]} 44. Kb2 {[%emt 0:00:30]} Bc2 {[%emt 0:00:30]} 45. Be4 {[%emt 0:00:30]} Bb1 {[%emt 0:00:30]} 46. Bg6 {[%emt 0:02:30]} a4 {[%emt 0:00:22]} 47. Bf5 {[%emt 0:00:30]} a3+ {[%emt 0:00:06]} 48. Ka1 {[%emt 0:00:30]} Kc6 {[%emt 0:00:14]} 49. Bg6 {[%emt 0:00:30]} Kb6 {[%emt 0:00:06]} 50. Bf5 {[%emt 0:00:30]} Ka5 {[%emt 0:00:30]} 51. Bd7 {[%emt 0:00:00]} Bxd3 {[%emt 0:00:36]} 52. Kxa2 {[%emt 0:00:00]} Bf1 {[%emt 0:03:01]} 53. Kxa3 {[%emt 0:00:00]} Bxh3 {[%emt 0:00:00]} 54. Kb3 {[%emt 0:00:00]} h5 {[%emt 0:00:33]} 55. f3 {[%emt 0:00:30]} e4 {[%emt 0:00:50]} 56. gxh5 {[%emt 0:00:30]} Bxd7 {[%emt 0:00:36]} 57. fxe4 {[%emt 0:00:30]} Be8 {[%emt 0:00:19]} 0-1

[Event "Turkish Super League 2019"]
[Site "Konya"]
[Date "2019.07.19"]
[Round "3"]
[White "Keler, Faruk"]
[Black "Ayan, Bengu Sena"]
[Result "1-0"]
[ECO "D78"]
[WhiteElo "2263"]
[BlackElo "1885"]
[Annotator "NA"]
[PlyCount "145"]
[EventDate "2019.07.17"]
[EventType "team-tourn"]
[EventCountry "TUR"]
[SourceTitle "playchess.com"]
[Source "ChessBase"]
[SourceQuality "1"]
[TimeControl "40/5400+30:1800+30"]

1. Nf3 d5 2. g3 Nf6 3. Bg2 g6 4. d4 Bg7 5. O-O O-O 6. c4 c6 7. Qb3 a5 8. cxd5 cxd5 9. Nc3 Nc6 10. Rd1 Ra6 11. Ne5 e6 12. Bf4 Rb6 13. Nxc6 Rxc6 14. Na4 Rc4 15. a3 b5 16. Nc5 Qb6 17. e3 Nd7 18. Nd3 Ba6 19. Bf1 Rc6 20. Rac1 Rfc8 21. Rxc6 Rxc6 22. Rc1 Rc4 23. Qd1 Rc6 24. Qd2 Bb7 25. Rxc6 Bxc6 26. Qc3 Bf8 27. b4 a4 28. Nc5 h6 29. h4 h5 30. Bd3 Nf6 31. Qc2 Kh7 32. Be5 Bxc5 33. bxc5 Qd8 34. Qb1 Nd7 35. Bxb5 Nxe5 36. dxe5 Qb8 37. Bd3 Qa7 38. Qb6 Qd7 39. Qb4 Qa7 40. g4 hxg4 41. h5 Be8 42. hxg6+ fxg6 43. Kg2 Qc7 44. Qd4 {[%emt 2:10:58]} Qe7 {[%emt 2:04:26]} 45. Be2 {[%emt 0:00:30]} Qg5 {[%emt 0:03:06]} 46. Bxg4 {[%emt 0:00:28]} Bb5 {[%emt 0:01:14]} 47. Kf3 {[%emt 0:00:43]} Qh4 {[%emt 0:07:19]} 48. Kg2 {[%emt 0:00:38]} Qg5 {[%emt 0:00:28]} 49. Kg3 {[%emt 0:03:26]} Qe7 {[%emt 0:01:41]} 50. Qb4 {[%emt 0:01:12]} Bc6 {[%emt 0:01:37]} 51. Qb6 {[%emt 0:01:08]} Qd7 {[%emt 0:00:06]} 52. Qb8 {[%emt 0:01:02]} d4 {[%emt 0:04:51]} 53. Qd6 {[%emt 0:01:38]} d3 {[%emt 0:00:35]} 54. Qxd7+ {[%emt 0:02:22]} Bxd7 {[%emt 0:00:00]} 55. Kf4 {[%emt 0:00:15]} Kg7 {[%emt 0:00:31]} 56. e4 {[%emt 0:00:13]} Kf7 {[%emt 0:00:35]} 57. Ke3 {[%emt 0:00:30]} Bb5 {[%emt 0:00:09]} 58. Kd2 {[%emt 0:00:00]} Ke7 {[%emt 0:01:08]} 59. Bh3 {[%emt 0:00:00]} Kd7 {[%emt 0:00:12]} 60. Bf1 {[%emt 0:00:27]} Kc6 {[%emt 0:01:29]} 61. Bxd3 {[%emt 0:00:05]} Kxc5 {[%emt 0:00:01]} 62. Bxb5 {[%emt 0:00:37]} Kxb5 {[%emt 0:00:03]} 63. Kd3 {[%emt 0:00:06]} Kc5 {[%emt 0:00:26]} 64. f4 {[%emt 0:00:22]} Kb5 {[%emt 0:01:11]} 65. Kd4 {[%emt 0:00:06]} Kc6 {[%emt 0:00:39]} 66. Kc4 {[%emt 0:00:07]} Kb6 {[%emt 0:00:00]} 67. Kb4 {[%emt 0:00:11]} Kc6 {[%emt 0:00:05]} 68. Kxa4 {[%emt 0:00:45]} Kc5 {[%emt 0:00:05]} 69. Kb3 {[%emt 0:02:16]} Kd4 {[%emt 0:00:41]} 70. a4 {[%emt 0:00:30]} Kxe4 {[%emt 0:00:00]} 71. Kc4 {[%emt 0:00:13]} Kxf4 {[%emt 0:00:00]} 72. a5 {[%emt 0:00:00]} g5 {[%emt 0:00:05]} 73. a6 {[%emt 0:00:00]} 1-0

[Event "Turkish Super League 2019"]
[Site "Konya"]
[Date "2019.07.19"]
[Round "3"]
[White "Yaran, Siar"]
[Black "Rozum, Ivan"]
[Result "0-1"]
[ECO "A30"]
[WhiteElo "2197"]
[BlackElo "2583"]
[Annotator "ChessBase"]
[PlyCount "80"]
[EventDate "2019.07.17"]
[EventType "team-tourn"]
[EventCountry "TUR"]
[SourceTitle "playchess.com"]
[Source "ChessBase"]
[SourceQuality "1"]
[TimeControl "40/5400+30:1800+30"]

1. c4 {[%emt 0:45:30]} Nf6 {[%emt 0:06:30]} 2. Nc3 {[%emt 0:00:30]} c5 {[%emt 0:00:30]} 3. g3 {[%emt 0:00:30]} e6 {[%emt 0:00:30]} 4. Nf3 {[%emt 0:00:30]} b6 {[%emt 0:00:30]} 5. Bg2 {[%emt 0:00:30]} Bb7 {[%emt 0:00:30]} 6. O-O {[%emt 0:00:30]} d6 {[%emt 0:00:30]} 7. d4 {[%emt 0:00:30]} cxd4 {[%emt 0:00:30]} 8. Qxd4 {[%emt 0:00:30]} a6 {[%emt 0:00:30]} 9. Bg5 {[%emt 0:00:30]} Nbd7 {[%emt 0:00:30]} 10. Rfd1 {[%emt 0:00:30]} Be7 {[%emt 0:00:30]} 11. a4 {[%emt 0:00:30]} O-O {[%emt 0:00:30]} 12. Bxf6 {[%emt 0:00:30]} Nxf6 {[%emt 0:00:30]} 13. b4 {[%emt 0:00:30]} Qc7 {[%emt 0:03:30]} 14. Rac1 {[%emt 0:06:30]} Rfd8 {[%emt 0:05:30]} 15. Nd2 {[%emt 0:02:30]} Bxg2 {[%emt 0:02:30]} 16. Kxg2 {[%emt 0:00:00]} Rac8 {[%emt 0:00:30]} 17. e4 {[%emt 0:04:00]} Nd7 {[%emt 0:08:30]} 18. f4 {[%emt 0:03:30]} Bf6 {[%emt 0:03:30]} 19. Qe3 {[%emt 0:03:30]} Qc6 {[%emt 0:03:30]} 20. Nf3 {[%emt 0:07:30]} Qa8 {[%emt 0:30:30]} 21. Ne2 {[%emt 0:04:21]} Be7 {[%emt 0:02:30]} 22. Ned4 {[%emt 0:02:43]} Bf8 {[%emt 0:04:30]} 23. Nb3 {[%emt 0:05:18]} Rc7 {[%emt 0:01:30]} 24. a5 {[%emt 0:05:02]} Rb8 {[%emt 0:01:30]} 25. axb6 {[%emt 0:04:17]} Rxb6 {[%emt 0:00:30]} 26. e5 {[%emt 0:00:49]} Rxb4 {[%emt 0:01:30]} 27. exd6 {[%emt 0:00:30]} Rcxc4 {[%emt 0:00:30]} 28. Rxc4 {[%emt 0:00:55]} Rxc4 {[%emt 0:00:00]} 29. Kh3 {[%emt 0:00:44]} Rc2 {[%emt 0:03:07]} 30. Nbd4 {[%emt 0:00:30]} Qd5 {[%emt 0:01:01]} 31. Nxc2 {[%emt 0:00:30]} Qxd1 {[%emt 0:00:30]} 32. Ncd4 {[%emt 0:00:25]} Nc5 {[%emt 0:08:55]} 33. f5 {[%emt 0:00:11]} Qf1+ {[%emt 0:00:33]} 34. Kh4 {[%emt 0:00:25]} Bxd6 {[%emt 0:04:30]} 35. fxe6 {[%emt 0:00:30]} Be7+ {[%emt 0:00:30]} 36. Kg4 {[%emt 0:00:05]} h5+ {[%emt 0:01:02]} 37. Kf4 {[%emt 0:01:13]} fxe6 {[%emt 0:01:18]} 38. Nxe6 {[%emt 0:01:04]} Qc4+ {[%emt 0:00:13]} 39. Nfd4 {[%emt 0:00:10]} Qd5 {[%emt 0:01:04]} 40. h4 {[%emt 0:00:00]} Bd6+ {[%emt 0:00:40]} 0-1

[Event "Turkish Super League 2019"]
[Site "Konya"]
[Date "2019.07.19"]
[Round "3"]
[White "Akdogan, Alperen"]
[Black "Tarlabasi, Emirhan"]
[Result "1/2-1/2"]
[ECO "E07"]
[WhiteElo "2193"]
[BlackElo "2352"]
[Annotator "NA"]
[PlyCount "173"]
[EventDate "2019.07.17"]
[EventType "team-tourn"]
[EventCountry "TUR"]
[SourceTitle "playchess.com"]
[Source "ChessBase"]
[SourceQuality "1"]
[TimeControl "40/5400+30:1800+30"]

1. d4 d5 2. Nf3 Nf6 3. c4 e6 4. g3 Bb4+ 5. Bd2 Be7 6. Bg2 O-O 7. O-O c6 8. Bf4 Nbd7 9. Nc3 b6 10. Re1 Bb7 11. Rc1 a6 12. cxd5 cxd5 13. Qb3 Rc8 14. a4 h6 15. Na2 g5 16. Rxc8 Bxc8 17. Be3 Bd6 18. Rc1 Qe7 19. h4 Ne4 20. Nc3 Nxc3 21. Qxc3 f6 22. Qd3 Kg7 23. Bh3 Rd8 24. Qd2 Bb7 25. hxg5 hxg5 26. Kg2 Rh8 27. Rh1 Nf8 28. Bg4 Rxh1 29. Kxh1 Kg8 30. Qd3 Bc8 31. Kg1 Kg7 32. Kg2 Qe8 33. Qc2 Bd7 34. Bh3 Bxa4 35. b3 Bb5 36. Nh2 Qg6 37. Qd2 a5 38. f3 Bb4 39. Qc1 Bxe2 40. Qc7+ Qf7 41. Qxb6 Bd3 42. Kf2 Bc2 43. f4 {[%emt 2:14:43]} Bxb3 {[%emt 2:01:42]} 44. fxg5 {[%emt 0:00:52]} fxg5+ {[%emt 0:00:49]} 45. Kg1 {[%emt 0:00:05]} Qe7 {[%emt 0:13:22]} 46. Nf3 {[%emt 0:01:46]} Nh7 {[%emt 0:03:04]} 47. Ne5 {[%emt 0:02:22]} Nf8 {[%emt 0:01:26]} 48. Nc6 {[%emt 0:02:32]} Qd6 {[%emt 0:01:24]} 49. Qb7+ {[%emt 0:00:21]} Qd7 {[%emt 0:00:23]} 50. Qxd7+ {[%emt 0:02:00]} Nxd7 {[%emt 0:00:04]} 51. Nxb4 {[%emt 0:00:10]} axb4 {[%emt 0:00:05]} 52. Bd2 {[%emt 0:00:27]} Nf6 {[%emt 0:00:58]} 53. Bxe6 {[%emt 0:00:35]} Ne4 {[%emt 0:00:42]} 54. Bxb4 {[%emt 0:00:07]} Nxg3 {[%emt 0:00:01]} 55. Kf2 {[%emt 0:01:01]} Ne4+ {[%emt 0:00:26]} 56. Ke3 {[%emt 0:00:16]} Kg6 {[%emt 0:00:15]} 57. Be7 {[%emt 0:00:38]} Kh5 {[%emt 0:00:55]} 58. Kf3 {[%emt 0:00:33]} Kh4 {[%emt 0:01:14]} 59. Kg2 {[%emt 0:00:16]} Nc3 {[%emt 0:00:29]} 60. Bb4 {[%emt 0:00:17]} Ne2 {[%emt 0:00:29]} 61. Be1+ {[%emt 0:00:59]} Kh5 {[%emt 0:00:04]} 62. Bf7+ {[%emt 0:00:03]} Kh6 {[%emt 0:00:25]} 63. Bf2 {[%emt 0:00:36]} Nf4+ {[%emt 0:00:33]} 64. Kf3 {[%emt 0:00:45]} Bd1+ {[%emt 0:00:05]} 65. Kg3 {[%emt 0:00:25]} Kg7 {[%emt 0:00:43]} 66. Be8 {[%emt 0:00:03]} Kf6 {[%emt 0:00:50]} 67. Bd7 {[%emt 0:00:06]} Ne2+ {[%emt 0:00:00]} 68. Kg2 {[%emt 0:00:45]} Bc2 {[%emt 0:00:08]} 69. Be3 {[%emt 0:00:19]} Bf5 {[%emt 0:01:43]} 70. Bc6 {[%emt 0:00:30]} Be4+ {[%emt 0:00:00]} 71. Kf2 {[%emt 0:00:00]} Nc3 {[%emt 0:00:01]} 72. Kg3 {[%emt 0:00:16]} Bf5 {[%emt 0:01:18]} 73. Kf3 {[%emt 0:01:24]} Be6 {[%emt 0:00:25]} 74. Bd2 {[%emt 0:01:25]} Ne4 {[%emt 0:00:06]} 75. Bc1 {[%emt 0:00:00]} Kf5 {[%emt 0:00:36]} 76. Bb5 {[%emt 0:00:09]} g4+ {[%emt 0:00:23]} 77. Kg2 {[%emt 0:00:10]} Kf6 {[%emt 0:00:46]} 78. Bd3 {[%emt 0:00:28]} Nc3 {[%emt 0:00:52]} 79. Bd2 {[%emt 0:00:25]} Na4 {[%emt 0:01:01]} 80. Kg3 {[%emt 0:00:32]} Nb2 {[%emt 0:00:29]} 81. Be2 {[%emt 0:00:38]} Nc4 {[%emt 0:00:05]} 82. Bc1 {[%emt 0:00:30]} Nd6 {[%emt 0:00:14]} 83. Bxg4 {[%emt 0:00:27]} Bxg4 {[%emt 0:00:30]} 84. Kxg4 {[%emt 0:00:30]} Nf5 {[%emt 0:00:30]} 85. Kf4 {[%emt 0:00:30]} Nxd4 {[%emt 0:00:30]} 86. Bb2 {[%emt 0:00:30]} Ke6 {[%emt 0:00:30]} 87. Bxd4 {[%emt 0:00:30]} 1/2-1/2

[Event "Turkish Super League 2019"]
[Site "Konya"]
[Date "2019.07.19"]
[Round "3"]
[White "Seyhanoglu, Deniz"]
[Black "Secer, Ata"]
[Result "0-1"]
[ECO "A21"]
[WhiteElo "2115"]
[BlackElo "2324"]
[Annotator "NA"]
[PlyCount "78"]
[EventDate "2019.07.17"]
[EventType "team-tourn"]
[EventCountry "TUR"]
[SourceTitle "playchess.com"]
[Source "ChessBase"]
[SourceQuality "1"]
[TimeControl "40/5400+30:1800+30"]

1. c4 {[%emt 0:41:30]} Nf6 {[%emt 0:05:30]} 2. Nc3 {[%emt 0:00:30]} e5 {[%emt 0:00:30]} 3. g3 {[%emt 0:00:30]} Bb4 {[%emt 0:00:30]} 4. Bg2 {[%emt 0:00:30]} Bxc3 {[%emt 0:00:30]} 5. bxc3 {[%emt 0:00:30]} O-O {[%emt 0:00:30]} 6. d3 {[%emt 0:00:30]} Re8 {[%emt 0:00:30]} 7. e4 {[%emt 0:00:30]} c6 {[%emt 0:00:30]} 8. Ne2 {[%emt 0:00:30]} d5 {[%emt 0:00:30]} 9. cxd5 {[%emt 0:00:30]} cxd5 {[%emt 0:00:30]} 10. O-O {[%emt 0:01:30]} dxe4 {[%emt 0:00:30]} 11. dxe4 {[%emt 0:00:30]} Nc6 {[%emt 0:00:30]} 12. Be3 {[%emt 0:09:30]} Be6 {[%emt 0:02:30]} 13. f3 {[%emt 0:03:30]} Qxd1 {[%emt 0:02:30]} 14. Rfxd1 {[%emt 0:00:30]} Red8 {[%emt 0:00:30]} 15. Rxd8+ {[%emt 0:04:30]} Rxd8 {[%emt 0:00:30]} 16. Bf1 {[%emt 0:08:30]} Ne8 {[%emt 0:03:30]} 17. Nc1 {[%emt 0:04:54]} Nd6 {[%emt 0:01:30]} 18. Nb3 {[%emt 0:01:01]} b6 {[%emt 0:03:30]} 19. Rd1 {[%emt 0:00:59]} Kf8 {[%emt 0:00:00]} 20. Bc1 {[%emt 0:01:43]} Ke8 {[%emt 0:03:00]} 21. Ba3 {[%emt 0:04:37]} Nc4 {[%emt 0:03:30]} 22. Rxd8+ {[%emt 0:00:02]} Kxd8 {[%emt 0:00:30]} 23. Bxc4 {[%emt 0:03:32]} Bxc4 {[%emt 0:00:30]} 24. Kf2 {[%emt 0:00:19]} g6 {[%emt 0:00:30]} 25. Nc1 {[%emt 0:01:20]} Kd7 {[%emt 0:01:30]} 26. Ke3 {[%emt 0:01:19]} Ke6 {[%emt 0:05:30]} 27. Bf8 {[%emt 0:00:48]} f5 {[%emt 0:02:30]} 28. Kd2 {[%emt 0:03:56]} h5 {[%emt 0:01:30]} 29. Ke3 {[%emt 0:01:44]} g5 {[%emt 0:01:30]} 30. f4 {[%emt 0:01:31]} exf4+ {[%emt 0:00:00]} 31. gxf4 {[%emt 0:00:04]} g4 {[%emt 0:00:00]} 32. e5 {[%emt 0:00:38]} h4 {[%emt 0:00:30]} 33. Bh6 {[%emt 0:02:32]} h3 {[%emt 0:00:30]} 34. Kf2 {[%emt 0:00:34]} Kd5 {[%emt 0:02:30]} 35. Bg5 {[%emt 0:00:27]} Ke4 {[%emt 0:00:30]} 36. Nb3 {[%emt 0:00:33]} Kd3 {[%emt 0:00:30]} 37. Nd4 {[%emt 0:00:43]} Nxd4 {[%emt 0:00:30]} 38. cxd4 {[%emt 0:00:03]} Bxa2 {[%emt 0:00:00]} 39. Bf6 {[%emt 0:01:12]} b5 {[%emt 0:00:00]} 0-1

[Event "Turkish Super League 2019"]
[Site "Konya"]
[Date "2019.07.19"]
[Round "3"]
[White "Korkmaz, Necmettin"]
[Black "Demircioglu, Emre"]
[Result "0-1"]
[ECO "C02"]
[WhiteElo "2078"]
[BlackElo "2242"]
[Annotator "NA"]
[PlyCount "114"]
[EventDate "2019.07.17"]
[EventType "team-tourn"]
[EventCountry "TUR"]
[SourceTitle "playchess.com"]
[Source "ChessBase"]
[SourceQuality "1"]
[TimeControl "40/5400+30:1800+30"]

1. e4 c5 2. c3 e6 3. d4 d5 4. e5 Nc6 5. Nf3 Nge7 6. a3 Nf5 7. dxc5 Bxc5 8. b4 Bb6 9. Bd3 Nh4 10. Nxh4 Qxh4 11. Qe2 f6 12. exf6 O-O 13. Be3 Rxf6 14. Bxb6 axb6 15. Qe3 e5 16. Qg3 Qh5 17. b5 Ne7 18. O-O e4 19. Bc2 Rg6 20. Bd1 Qf5 21. Qe3 Qh3 22. Qxh3 Bxh3 23. g3 Bxf1 24. Kxf1 Rf6 25. Kg2 Rc8 26. Ra2 Ng6 27. Rd2 Rc5 28. a4 Ne5 29. Bb3 Nd3 30. Kg1 Kf8 31. Bd1 Ke7 32. f3 Ne5 33. fxe4 dxe4 34. Re2 Nf3+ 35. Kg2 Re6 36. Bb3 Ree5 37. Bc2 Ng5 38. h4 Nf7 39. Rxe4 h6 40. Kf3 Rxe4 41. Kxe4 Nd6+ 42. Ke3 Kf6 43. Bd3 Ke5 44. Bc2 Rc4 45. Bb3 Rc8 46. g4 Ne4 {[%emt 2:05:31]} 47. c4 {[%emt 2:10:28]} Rf8 {[%emt 0:00:08]} 48. Bc2 {[%emt 0:06:38]} Rf4 {[%emt 0:01:14]} 49. Bd1 {[%emt 0:00:43]} Nd6 {[%emt 0:01:41]} 50. c5 {[%emt 0:03:43]} Nc4+ {[%emt 0:00:59]} 51. Kd3 {[%emt 0:02:37]} Nb2+ {[%emt 0:01:43]} 52. Kc2 {[%emt 0:00:00]} Nxd1 {[%emt 0:00:07]} 53. Kxd1 {[%emt 0:00:11]} bxc5 {[%emt 0:00:50]} 54. a5 {[%emt 0:00:15]} Rxg4 {[%emt 0:00:49]} 55. Nd2 {[%emt 0:00:43]} Ra4 {[%emt 0:02:23]} 56. Kc2 {[%emt 0:00:08]} Kd5 {[%emt 0:00:03]} 57. Nb3 {[%emt 0:00:30]} c4 {[%emt 0:00:35]} 0-1

[Event "Turkish Super League 2019"]
[Site "Konya"]
[Date "2019.07.19"]
[Round "3"]
[White "Dolgun, Can"]
[Black "Lobanov, Sergei"]
[Result "0-1"]
[ECO "C75"]
[WhiteElo "2064"]
[BlackElo "2505"]
[Annotator "ChessBase"]
[PlyCount "86"]
[EventDate "2019.07.17"]
[EventType "team-tourn"]
[EventCountry "TUR"]
[SourceTitle "playchess.com"]
[Source "ChessBase"]
[SourceQuality "1"]
[TimeControl "40/5400+30:1800+30"]

1. e4 {[%emt 0:18:30]} e5 {[%emt 0:24:30]} 2. Nf3 {[%emt 0:00:30]} Nc6 {[%emt 0:00:30]} 3. Bb5 {[%emt 0:00:30]} a6 {[%emt 0:00:30]} 4. Ba4 {[%emt 0:00:30]} d6 {[%emt 0:00:30]} 5. O-O {[%emt 0:00:30]} Bd7 {[%emt 0:00:30]} 6. c3 {[%emt 0:00:30]} Nge7 {[%emt 0:00:30]} 7. d4 {[%emt 0:00:30]} Ng6 {[%emt 0:00:30]} 8. dxe5 {[%emt 0:00:30]} Ncxe5 {[%emt 0:00:30]} 9. Nxe5 {[%emt 0:00:30]} dxe5 {[%emt 0:00:30]} 10. Bxd7+ {[%emt 0:00:30]} Qxd7 {[%emt 0:00:30]} 11. Qxd7+ {[%emt 0:00:30]} Kxd7 {[%emt 0:00:30]} 12. Be3 {[%emt 0:00:30]} Be7 {[%emt 0:00:30]} 13. Rd1+ {[%emt 0:00:30]} Ke6 {[%emt 0:00:30]} 14. Nd2 {[%emt 0:00:30]} Rhc8 {[%emt 0:00:30]} 15. a4 {[%emt 0:00:30]} b6 {[%emt 0:00:30]} 16. Nb3 {[%emt 0:00:30]} Nf8 {[%emt 0:06:30]} 17. Rd5 {[%emt 0:01:30]} c6 {[%emt 0:03:30]} 18. Rd2 {[%emt 0:04:30]} c5 {[%emt 0:06:30]} 19. c4 {[%emt 0:01:30]} Nd7 {[%emt 0:05:30]} 20. Rad1 {[%emt 0:09:30]} Ra7 {[%emt 0:09:30]} 21. Nc1 {[%emt 0:03:30]} Nb8 {[%emt 0:01:30]} 22. Ne2 {[%emt 0:01:30]} Nc6 {[%emt 0:00:30]} 23. Nc3 {[%emt 0:15:30]} Nd4 {[%emt 0:00:00]} 24. Nd5 {[%emt 0:01:30]} Rb7 {[%emt 0:00:00]} 25. Kf1 {[%emt 0:10:30]} Bd6 {[%emt 0:00:30]} 26. Bxd4 {[%emt 0:04:30]} cxd4 {[%emt 0:03:30]} 27. b3 {[%emt 0:00:30]} b5 {[%emt 0:01:30]} 28. cxb5 {[%emt 0:04:05]} axb5 {[%emt 0:00:30]} 29. a5 {[%emt 0:01:17]} f5 {[%emt 0:03:30]} 30. f3 {[%emt 0:00:54]} fxe4 {[%emt 0:06:30]} 31. fxe4 {[%emt 0:00:04]} Rc5 {[%emt 0:04:30]} 32. Ra2 {[%emt 0:03:53]} Rxd5 {[%emt 0:04:40]} 33. exd5+ {[%emt 0:00:41]} Kxd5 {[%emt 0:00:04]} 34. a6 {[%emt 0:00:00]} Ra7 {[%emt 0:00:30]} 35. Rc1 {[%emt 0:00:00]} d3 {[%emt 0:01:28]} 36. Ra5 {[%emt 0:00:26]} Kd4 {[%emt 0:12:51]} 37. Rc6 {[%emt 0:02:56]} Rf7+ {[%emt 0:00:04]} 38. Kg1 {[%emt 0:00:55]} Bb8 {[%emt 0:00:05]} 39. Rxb5 {[%emt 0:00:27]} d2 {[%emt 0:01:48]} 40. Rc4+ {[%emt 0:00:54]} Ke3 {[%emt 0:00:00]} 41. Rd5 {[%emt 0:00:28]} Ba7 {[%emt 0:00:30]} 42. h3 {[%emt 0:01:30]} Bd4 {[%emt 0:00:30]} 43. Rc3+ {[%emt 0:01:30]} Ke4+ {[%emt 0:00:30]} 0-1